fUST/lending_fUST_20240306
["ID","MTS","AMOUNT","RATE_DAILY","PERIOD"]
[316979892,1709661038095,-500.0,0.00023287,2]
[316979894,1709661038105,-500.0,0.00023287,2]
[316979896,1709661038115,-500.0,0.00023287,2]
[316979899,1709661038124,-500.0,0.00023287,2]
[316979901,1709661038134,-500.0,0.00023287,2]
[316979903,1709661038143,-500.0,0.00023287,2]
[316979907,1709661038157,-308.6,0.00023287,2]
[316979909,1709661038166,-500.0,0.00023287,2]
[316979910,1709661038175,-500.0,0.00023287,2]
[316979912,1709661038184,-500.0,0.00023287,2]
[316979914,1709661038193,-500.0,0.00023287,2]
[316979916,1709661038202,-500.0,0.00023287,2]
[316979918,1709661038212,-506.21161018,0.00023287,2]
[316979920,1709661038221,-500.0,0.00023287,2]
[316979922,1709661038231,-500.0,0.00023287,2]
[316979924,1709661038240,-633.10409714,0.00023287,2]
[316979926,1709661038249,-500.0,0.00023287,2]
[316979928,1709661038259,-500.0,0.00023287,2]
[316979931,1709661038268,-500.0,0.00023287,2]
[316979934,1709661038277,-500.0,0.00023287,2]
[316979937,1709661038287,-500.0,0.00023287,2]
[316979941,1709661038296,-300.8366302,0.00023287,2]
[316979944,1709661038306,-500.0,0.00023287,2]
[316979946,1709661038315,-500.0,0.00023287,2]
[316979949,1709661038324,-500.0,0.00023287,2]
[316979952,1709661038333,-500.0,0.00023287,2]
[316979956,1709661038343,-500.0,0.00023287,2]
[316979958,1709661038352,-213.68,0.00023287,2]
[316979961,1709661038362,-500.0,0.00023287,2]
[316979963,1709661038371,-500.0,0.00023287,2]
[316979965,1709661038380,-500.0,0.00023287,2]
[316979967,1709661038389,-500.0,0.00023287,2]
[316979969,1709661038398,-500.0,0.00023287,2]
[316979971,1709661038410,-500.0,0.00023287,2]
[316979973,1709661038419,-500.0,0.00023287,2]
[316979975,1709661038428,-500.0,0.00023287,2]
[316979977,1709661038438,-500.0,0.00023287,2]
[316979979,1709661038447,-500.0,0.00023287,2]
[316979981,1709661038457,-500.0,0.00023287,2]
[316979983,1709661038466,-500.0,0.00023287,2]
[316979985,1709661038475,-500.0,0.00023287,2]
[316979987,1709661038484,-500.0,0.00023287,2]
[316979989,1709661038494,-500.0,0.00023287,2]
[316979991,1709661038504,-500.0,0.00023287,2]
[316979993,1709661038513,-500.0,0.00023287,2]
[316979995,1709661038522,-500.0,0.00023287,2]
[316979997,1709661038531,-500.0,0.00023287,2]
[316979999,1709661038541,-500.0,0.00023287,2]
[316980001,1709661038550,-500.0,0.00023287,2]
[316980003,1709661038559,-500.0,0.00023287,2]
[316980005,1709661038568,-500.0,0.00023287,2]
[316980007,1709661038577,-500.0,0.00023287,2]
[316980009,1709661038586,-503.69726522,0.00023287,2]
[316980011,1709661038594,-500.0,0.00023287,2]
[316980013,1709661038603,-500.0,0.00023287,2]
[316980015,1709661038613,-500.0,0.00023287,2]
[316980017,1709661038622,-500.0,0.00023287,2]
[316980019,1709661038631,-500.0,0.00023287,2]
[316980021,1709661038640,-500.0,0.00023287,2]
[316980023,1709661038649,-500.0,0.00023287,2]
[316980025,1709661038659,-2027.97,0.00023287,2]
[316980027,1709661038668,-2027.97,0.00023287,2]
[316980029,1709661038677,-501.26215366,0.00023287,2]
[316980030,1709661038686,-940.29,0.00023287,2]
[316980033,1709661038695,-940.29,0.00023287,2]
[316980035,1709661038704,-500.0,0.00023287,2]
[316980037,1709661038714,-257.0,0.00023287,2]
[316980038,1709661038723,-159.08667135,0.00023287,2]
[316980040,1709661038732,-500.0,0.00023287,2]
[316980042,1709661038741,-500.0,0.00023287,2]
[316980044,1709661038750,-265.12845,0.00023452,2]
[316980046,1709661038760,-500.0,0.0002375,2]
[316980048,1709661038769,-500.0,0.0002375,2]
[316980050,1709661038778,-13955.16767422,0.00023751,7]
[316980054,1709661038802,-311.28241598,0.00023158,3]
[316980056,1709661038811,-1638.62302278,0.00023751,7]
[316980060,1709661038836,-34406.209303,0.00023751,7]
[316980062,1709661038845,-163.88016271,0.0002377,2]
[316980064,1709661038854,-1000.0,0.0002387,7]
[316980066,1709661038863,-1000.0,0.00023872,7]
[316980068,1709661038873,-1000.0,0.00023873,7]
[316980070,1709661038882,-500.0,0.00023897,2]
[316980071,1709661038892,-577.73044801,0.00023897,2]
[316980074,1709661038903,-500.0,0.00023897,2]
[316980076,1709661038913,-500.0,0.00023897,2]
[316980078,1709661038922,-500.0,0.00023897,2]
[316980080,1709661038931,-500.0,0.00023897,2]
[316980081,1709661038940,-502.17398445,0.00023897,2]
[316980083,1709661038950,-2027.97,0.00023897,2]
[316980085,1709661038959,-940.29,0.00023897,2]
[316980087,1709661038968,-500.0,0.00023898,2]
[316980089,1709661038977,-500.0,0.00023898,2]
[316980091,1709661038986,-1246.85,0.00023898,2]
[316980093,1709661038995,-1246.85,0.00023898,2]
[316980095,1709661039005,-2128.58,0.00023898,2]
[316980097,1709661039014,-2128.58,0.00023898,2]
[316980099,1709661039023,-500.0,0.00023898,2]
[316980101,1709661039032,-500.0,0.00023898,2]
[316980103,1709661039041,-625.59,0.00023898,2]
[316980105,1709661039050,-500.0,0.00023898,2]
[316980107,1709661039060,-500.0,0.00023898,2]
[316980109,1709661039069,-576.84928204,0.00023898,2]
[316980111,1709661039079,-500.0,0.00023898,2]
[316980113,1709661039088,-500.0,0.00023898,2]
[316980115,1709661039098,-500.0,0.00023898,2]
[316980117,1709661039107,-302.44249451,0.00023898,2]
[316980119,1709661039117,-500.0,0.00023899,2]
[316980121,1709661039126,-500.0,0.00023899,2]
[316980123,1709661039135,-500.0,0.00023899,2]
[316980125,1709661039145,-500.0,0.00023899,2]
[316980127,1709661039155,-500.0,0.00023899,2]
[316980129,1709661039164,-380.87778139,0.00023899,2]
[316980131,1709661039173,-1246.85,0.00023899,2]
[316980133,1709661039183,-1246.85,0.00023899,2]
[316980135,1709661039192,-1246.85,0.00023899,2]
[316980137,1709661039201,-2128.58,0.00023899,2]
[316980139,1709661039210,-2128.58,0.00023899,2]
[316980141,1709661039219,-2128.58,0.00023899,2]
[316980143,1709661039229,-500.0,0.00023899,2]
[316980145,1709661039238,-500.0,0.00023899,2]
[316980147,1709661039247,-500.0,0.00023899,2]
[316980149,1709661039257,-586.63,0.00023899,2]
[316980151,1709661039266,-471.51833607,0.000239,2]
[316980152,1709661039275,-1246.85,0.00023996,2]
[316980154,1709661039284,-2128.58,0.00023996,2]
[316980156,1709661039294,-500.0,0.00023996,2]
[316980159,1709661039303,-500.0,0.00023996,2]
[316980161,1709661039313,-500.0,0.00023996,2]
[316980163,1709661039322,-500.0,0.00023996,2]
[316980165,1709661039331,-500.0,0.00023996,2]
[316980166,1709661039340,-2027.97,0.00023996,2]
[316980169,1709661039350,-940.29,0.00023996,2]
[316980170,1709661039359,-414.96810622,0.00023997,2]
[316980173,1709661039369,-1246.85,0.00023997,2]
[316980174,1709661039378,-2128.58,0.00023997,2]
[316980177,1709661039387,-155.05352519,0.00023998,2]
[316980179,1709661039397,-528.19565968,0.00023998,2]
[316980181,1709661039408,-1246.85,0.00023998,2]
[316980182,1709661039417,-1246.85,0.00023998,2]
[316980184,1709661039426,-2128.58,0.00023998,2]
[316980187,1709661039436,-2128.58,0.00023998,2]
[316980189,1709661039445,-22347.01128831,0.00023998,7]
[316980191,1709661039455,-500.0,0.00023998,2]
[316980193,1709661039464,-500.0,0.00023998,2]
[316980194,1709661039473,-500.0,0.00023998,2]
[316980196,1709661039482,-500.0,0.00023998,2]
[316980199,1709661039492,-500.0,0.00023998,2]
[316980201,1709661039502,-500.0,0.00023998,2]
[316980202,1709661039510,-500.0,0.00023998,2]
[316980204,1709661039520,-500.0,0.00023998,2]
[316980206,1709661039530,-155.04031048,0.00023998,2]
[316980208,1709661039538,-2027.97,0.00023998,2]
[316980210,1709661039548,-2027.97,0.00023998,2]
[316980212,1709661039557,-940.29,0.00023998,2]
[316980214,1709661039566,-940.29,0.00023998,2]
[316980216,1709661039575,-1497.04948143,0.00023999,2]
[316980218,1709661039584,-1246.85,0.00023999,2]
[316980220,1709661039594,-1246.85,0.00023999,2]
[316980222,1709661039603,-1246.85,0.00023999,2]
[316980224,1709661039612,-1246.85,0.00023999,2]
[316980226,1709661039622,-1246.85,0.00023999,2]
[316980229,1709661039631,-1246.85,0.00023999,2]
[316980231,1709661039641,-1246.85,0.00023999,2]
[316980233,1709661039650,-1246.85,0.00023999,2]
[316980235,1709661039662,-1247.0,0.00023999,2]
[316980237,1709661039671,-2128.58,0.00023999,2]
[316980239,1709661039680,-2128.58,0.00023999,2]
[316980241,1709661039689,-2128.58,0.00023999,2]
[316980243,1709661039698,-2128.58,0.00023999,2]
[316980244,1709661039707,-2128.58,0.00023999,2]
[316980246,1709661039716,-2128.58,0.00023999,2]
[316980248,1709661039725,-2128.58,0.00023999,2]
[316980251,1709661039735,-2128.58,0.00023999,2]
[316980252,1709661039744,-2128.68719315,0.00023999,2]
[316980254,1709661039753,-500.0,0.00023999,2]
[316980256,1709661039762,-500.0,0.00023999,2]
[316980258,1709661039771,-500.0,0.00023999,2]
[316980260,1709661039780,-500.0,0.00023999,2]
[316980262,1709661039789,-500.0,0.00023999,2]
[316980264,1709661039799,-630.86798232,0.00023999,2]
[316980266,1709661039809,-500.0,0.00023999,2]
[316980268,1709661039819,-500.0,0.00023999,2]
[316980270,1709661039829,-500.0,0.00023999,2]
[316980281,1709661039914,-500.0,0.00023999,2]
[316980283,1709661039924,-500.0,0.00023999,2]
[316980285,1709661039934,-500.0,0.00023999,2]
[316980287,1709661039943,-500.0,0.00023999,2]
[316980289,1709661039952,-500.0,0.00023999,2]
[316980291,1709661039961,-500.0,0.00023999,2]
[316980293,1709661039970,-500.0,0.00023999,2]
[316980295,1709661039979,-500.0,0.00023999,2]
[316980297,1709661039988,-500.0,0.00023999,2]
[316980298,1709661039997,-500.0,0.00023999,2]
[316980301,1709661040007,-500.0,0.00023999,2]
[316980303,1709661040016,-500.0,0.00023999,2]
[316980305,1709661040026,-477.44198604,0.00023999,2]
[316980307,1709661040035,-500.0,0.00023999,2]
[316980308,1709661040044,-500.0,0.00023999,2]
[316980310,1709661040053,-500.0,0.00023999,2]
[316980312,1709661040062,-500.0,0.00023999,2]
[316980314,1709661040072,-500.0,0.00023999,2]
[316980317,1709661040083,-500.0,0.00023999,2]
[316980319,1709661040094,-500.0,0.00023999,2]
[316980320,1709661040104,-500.0,0.00023999,2]
[316980322,1709661040115,-579.41294883,0.00023999,2]
[316980324,1709661040126,-332.35,0.00023999,2]
[316980326,1709661040137,-2027.97,0.00023999,2]
[316980329,1709661040147,-2027.97,0.00023999,2]
[316980330,1709661040159,-2027.97,0.00023999,2]
[316980333,1709661040174,-2027.97,0.00023999,2]
[316980335,1709661040185,-2027.97,0.00023999,2]
[316980337,1709661040195,-2027.97,0.00023999,2]
[316980339,1709661040205,-2027.97,0.00023999,2]
[316980341,1709661040215,-2027.97,0.00023999,2]
[316980343,1709661040224,-2027.97,0.00023999,2]
[316980345,1709661040233,-2027.97,0.00023999,2]
[316980347,1709661040242,-2027.97,0.00023999,2]
[316980348,1709661040252,-2027.97,0.00023999,2]
[316980351,1709661040261,-2027.97,0.00023999,2]
[316980352,1709661040273,-2027.97,0.00023999,2]
[316980355,1709661040283,-2027.97,0.00023999,2]
[316980357,1709661040293,-2027.97,0.00023999,2]
[316980359,1709661040302,-2027.97,0.00023999,2]
[316980362,1709661040311,-2028.02294367,0.00023999,2]
[316980364,1709661040321,-940.29,0.00023999,2]
[316980367,1709661040331,-940.29,0.00023999,2]
[316980370,1709661040341,-940.29,0.00023999,2]
[316980372,1709661040352,-940.29,0.00023999,2]
[316980373,1709661040361,-940.29,0.00023999,2]
[316980376,1709661040371,-940.29,0.00023999,2]
[316980377,1709661040381,-940.29,0.00023999,2]
[316980379,1709661040391,-940.29,0.00023999,2]
[316980381,1709661040401,-940.29,0.00023999,2]
[316980384,1709661040421,-940.29,0.00023999,2]
[316980386,1709661040431,-940.29,0.00023999,2]
[316980388,1709661040440,-940.29,0.00023999,2]
[316980390,1709661040450,-940.29,0.00023999,2]
[316980392,1709661040459,-940.29,0.00023999,2]
[316980394,1709661040468,-940.29,0.00023999,2]
[316980396,1709661040478,-940.29,0.00023999,2]
[316980398,1709661040488,-940.29,0.00023999,2]
[316980400,1709661040497,-940.41,0.00023999,2]
[316980402,1709661040507,-261.54102441,0.00024,3]
[316980404,1709661040517,-567455.38994329,0.00024,5]
[316980444,1709661040914,-13072.18131753,0.00020813,2]
[316980447,1709661040926,-2172.60356575,0.00020813,2]
[316980449,1709661040936,-10276.89713823,0.00024,5]
[316980451,1709661040948,-65075.56566127,0.00024,5]
[316980767,1709661044094,-200.8478084,0.00022382,2]
[316980769,1709661044105,-500.0,0.00023287,2]
[316980771,1709661044115,-500.0,0.00023287,2]
[316980773,1709661044125,-500.0,0.00023287,2]
[316980775,1709661044134,-500.0,0.00023287,2]
[316980777,1709661044144,-500.0,0.0002375,2]
[316980779,1709661044154,-500.0,0.00023898,2]
[316980781,1709661044165,-161.23883603,0.00023997,2]
[316980783,1709661044176,-12688.94141534,0.00024,5]
[316981090,1709661046860,-404.57846919,0.00024,5]
[316986158,1709662232196,-1880.71104706,0.00019999,2]
[316986159,1709662232208,-306.80997,0.0002,2]
[316986161,1709662232220,-234.39049692,0.00021,2]
[316986163,1709662232231,-3029.86941218,0.00021,2]
[316986165,1709662232242,-2399.4658187,0.00021,2]
[316986167,1709662232252,-195.45156082,0.00021,2]
[316986169,1709662232264,-167.72507,0.00021389,2]
[316986172,1709662232274,-413.77548632,0.00021527,2]
[316986369,1709662240241,-862.2,0.00021527,2]
[316986372,1709662240254,-446.08984308,0.00021527,2]
[316986374,1709662240263,-173.70028599,0.000219,2]
[316986376,1709662240273,-1276.16384528,0.00022,2]
[316986378,1709662240282,-1667.68500194,0.00022169,2]
[316986380,1709662240291,-875.09853826,0.0002217,2]
[316986382,1709662240303,-496.89985449,0.00022882,2]
[316986384,1709662240313,-1159.07710491,0.00022884,3]
[316986386,1709662240323,-1604.25087645,0.00022884,3]
[316986388,1709662240332,-2079.62420735,0.00022884,3]
[316986390,1709662240344,-665.81148892,0.00022885,3]
[316986392,1709662240354,-2210.42080454,0.00022886,3]
[316986394,1709662240363,-2298.40717308,0.00022886,3]
[316986396,1709662240373,-7459.29435392,0.00023163,5]
[316986398,1709662240382,-3960.78435783,0.00023163,5]
[316986400,1709662240393,-5000.0,0.00023163,7]
[316986402,1709662240403,-500.0,0.00023287,2]
[316986404,1709662240412,-500.0,0.00023287,2]
[316986406,1709662240422,-500.0,0.00023287,2]
[316986408,1709662240431,-500.0,0.00023287,2]
[316986410,1709662240440,-500.0,0.00023287,2]
[316986412,1709662240453,-500.0,0.00023287,2]
[316986414,1709662240462,-500.0,0.00023287,2]
[316986416,1709662240471,-500.0,0.00023287,2]
[316986418,1709662240486,-500.0,0.00023287,2]
[316986421,1709662240496,-500.0,0.00023287,2]
[316986423,1709662240506,-500.0,0.00023287,2]
[316986425,1709662240517,-500.0,0.00023287,2]
[316986426,1709662240527,-606.84,0.00023287,2]
[316986428,1709662240536,-500.0,0.00023287,2]
[316986430,1709662240546,-500.0,0.00023287,2]
[316986432,1709662240555,-500.0,0.00023287,2]
[316986434,1709662240565,-500.0,0.00023287,2]
[316986436,1709662240574,-500.0,0.00023287,2]
[316986438,1709662240583,-500.0,0.00023287,2]
[316986440,1709662240594,-500.0,0.00023287,2]
[316986442,1709662240603,-500.0,0.00023287,2]
[316986444,1709662240612,-500.0,0.00023287,2]
[316986446,1709662240621,-500.0,0.00023287,2]
[316986448,1709662240630,-500.0,0.00023287,2]
[316986450,1709662240640,-500.0,0.00023287,2]
[316986452,1709662240649,-500.0,0.00023287,2]
[316986454,1709662240658,-500.0,0.00023287,2]
[316986456,1709662240668,-500.0,0.0002375,2]
[316986458,1709662240677,-500.0,0.0002375,2]
[316986460,1709662240686,-513.06740186,0.0002375,2]
[316986462,1709662240699,-628.11402767,0.0002375,2]
[316986464,1709662240708,-500.0,0.0002375,2]
[316986466,1709662240717,-1000.0,0.00023882,7]
[316986468,1709662240727,-1000.0,0.00023882,7]
[316986470,1709662240736,-1000.0,0.00023883,7]
[316986472,1709662240745,-500.0,0.00023897,2]
[316986474,1709662240755,-614.8076741,0.00023898,2]
[316986476,1709662240764,-500.0,0.00023898,2]
[316986477,1709662240774,-3290.27423784,0.000239,2]
[316986480,1709662240784,-333.17003694,0.000239,2]
[316986481,1709662240793,-225.41,0.0002399,3]
[316986483,1709662240803,-676.23,0.0002399,3]
[316986485,1709662240813,-500.0,0.00023997,2]
[316986487,1709662240823,-324.95,0.00023997,2]
[316986489,1709662240833,-500.0,0.00023997,2]
[316986492,1709662240843,-500.0,0.00023997,2]
[316986493,1709662240852,-500.0,0.00023997,2]
[316986496,1709662240862,-315.0,0.00023997,2]
[316986498,1709662240872,-500.0,0.00023998,2]
[316986499,1709662240882,-500.0,0.00023998,2]
[316986502,1709662240892,-5902.58,0.00023998,2]
[316986504,1709662240904,-784.25721242,0.00023998,2]
[316986506,1709662240913,-5891.03672747,0.00023999,2]
[316986508,1709662240923,-500.0,0.00023999,2]
[316986510,1709662240932,-261.70974616,0.00023999,2]
[316986512,1709662240941,-500.0,0.00023999,2]
[316986514,1709662240955,-500.0,0.00023999,2]
[316986516,1709662240964,-426.38295368,0.00023999,2]
[316986518,1709662240974,-515.61175815,0.00023999,2]
[316986520,1709662240983,-500.0,0.00023999,2]
[316986521,1709662240992,-468.8500418,0.00023999,2]
[316986523,1709662241002,-622.16,0.00023999,2]
[316986525,1709662241011,-500.0,0.00023999,2]
[316986527,1709662241021,-500.0,0.00023999,2]
[316986529,1709662241030,-500.0,0.00023999,2]
[316986532,1709662241047,-500.0,0.00023999,2]
[316986534,1709662241056,-500.0,0.00023999,2]
[316986536,1709662241066,-500.0,0.00023999,2]
[316986538,1709662241075,-500.0,0.00023999,2]
[316986540,1709662241085,-435.6852265,0.00023999,2]
[316986542,1709662241094,-244770.55521937,0.00024,5]
[316986544,1709662241106,-19677.91687602,0.00024,5]
[316986738,1709662243146,-1084.5561706,0.00024,5]
[316986979,1709662245460,-90896.75873244,0.00024,5]
[316987056,1709662246082,-1130.36298653,0.00024,5]
[316987063,1709662246217,-945520.28311898,0.00024,5]
[316987067,1709662246239,-334.9455058,0.00024,5]
[316993751,1709663438194,-1162.35642317,0.00021588,2]
[316993753,1709663438205,-161.0,0.00022,2]
[316993755,1709663438215,-1667.68500194,0.00022169,2]
[316993757,1709663438226,-875.09853826,0.00022191,2]
[316993759,1709663438236,-161.0,0.00022192,2]
[316993761,1709663438246,-342.15229193,0.000227,2]
[316993763,1709663438255,-258.20012224,0.00022907,2]
[316993765,1709663438265,-962.28231534,0.00022908,3]
[316993767,1709663438274,-524.30353512,0.00022909,3]
[316993769,1709663438283,-523.11503125,0.0002291,3]
[316993771,1709663438293,-160.28450407,0.0002291,2]
[316993773,1709663438302,-337.85462745,0.0002291,3]
[316993775,1709663438311,-161.0,0.00023014,2]
[316993777,1709663438320,-746.91143748,0.00023164,3]
[316993779,1709663438331,-5000.0,0.00023165,7]
[316993781,1709663438340,-3097.15930162,0.00023165,5]
[316993783,1709663438350,-6053.34259573,0.00023165,5]
[316993785,1709663438359,-500.0,0.00023287,2]
[316993787,1709663438368,-153.0,0.00023478,2]
[316993789,1709663438378,-306.0,0.00023478,2]
[316993791,1709663438387,-153.0,0.00023478,2]
[316993793,1709663438397,-306.0,0.00023478,2]
[316993795,1709663438406,-153.0,0.00023478,2]
[316993797,1709663438416,-170.40200434,0.00023759,2]
[316993799,1709663438425,-1000.0,0.0002389,7]
[316993801,1709663438435,-1000.0,0.00023896,7]
[316993803,1709663438444,-2285.01833158,0.000239,2]
[316993805,1709663438454,-7513.60001377,0.00023997,2]
[316993807,1709663438464,-1071.65556128,0.00023998,2]
[316993808,1709663438473,-1497.04948143,0.00023998,2]
[316993809,1709663438483,-500.0,0.00023998,2]
[316993811,1709663438492,-500.0,0.00023998,2]
[316993812,1709663438502,-500.0,0.00023998,2]
[316993813,1709663438519,-500.0,0.00023998,2]
[316993815,1709663438529,-500.0,0.00023998,2]
[316993816,1709663438539,-500.0,0.00023998,2]
[316993818,1709663438549,-962.96,0.00023998,2]
[316993820,1709663438559,-1098.48,0.00023998,2]
[316993822,1709663438568,-500.0,0.00023998,2]
[316993824,1709663438579,-500.0,0.00023998,2]
[316993825,1709663438589,-500.0,0.00023998,2]
[316993827,1709663438599,-709.53,0.00023998,2]
[316993836,1709663438697,-500.0,0.00023998,2]
[316993837,1709663438707,-500.0,0.00023998,2]
[316993838,1709663438716,-500.0,0.00023998,2]
[316993839,1709663438725,-500.0,0.00023998,2]
[316993840,1709663438734,-500.0,0.00023998,2]
[316993841,1709663438743,-500.0,0.00023998,2]
[316993842,1709663438752,-500.0,0.00023998,2]
[316993843,1709663438761,-500.0,0.00023998,2]
[316993844,1709663438771,-449.98784964,0.00023998,2]
[316993846,1709663438780,-630.86798232,0.00023999,2]
[316993848,1709663438789,-500.0,0.00023999,2]
[316993849,1709663438797,-610.08,0.00023999,2]
[316993850,1709663438806,-500.0,0.00023999,2]
[316993851,1709663438815,-500.0,0.00023999,2]
[316993852,1709663438825,-500.0,0.00023999,2]
[316993853,1709663438835,-500.0,0.00023999,2]
[316993854,1709663438844,-500.0,0.00023999,2]
[316993855,1709663438854,-500.0,0.00023999,2]
[316993856,1709663438863,-500.0,0.00023999,2]
[316993857,1709663438872,-500.0,0.00023999,2]
[316993858,1709663438882,-500.0,0.00023999,2]
[316993859,1709663438891,-500.0,0.00023999,2]
[316993860,1709663438901,-500.0,0.00023999,2]
[316993861,1709663438911,-454.72198604,0.00023999,2]
[316993862,1709663438920,-500.0,0.00023999,2]
[316993863,1709663438931,-500.0,0.00023999,2]
[316993864,1709663438941,-500.0,0.00023999,2]
[316993865,1709663438950,-500.0,0.00023999,2]
[316993866,1709663438960,-500.0,0.00023999,2]
[316993867,1709663438969,-500.0,0.00023999,2]
[316993869,1709663438978,-500.0,0.00023999,2]
[316993871,1709663438987,-500.0,0.00023999,2]
[316993872,1709663438996,-500.0,0.00023999,2]
[316993873,1709663439005,-500.0,0.00023999,2]
[316993874,1709663439015,-500.0,0.00023999,2]
[316993875,1709663439023,-500.0,0.00023999,2]
[316993876,1709663439033,-293.24863722,0.00023999,2]
[316993877,1709663439043,-962.96,0.00023999,2]
[316993878,1709663439052,-962.96,0.00023999,2]
[316993879,1709663439061,-962.96,0.00023999,2]
[316993880,1709663439070,-962.96,0.00023999,2]
[316993881,1709663439084,-962.96,0.00023999,2]
[316993882,1709663439093,-962.96,0.00023999,2]
[316993883,1709663439103,-962.96,0.00023999,2]
[316993884,1709663439112,-962.96,0.00023999,2]
[316993885,1709663439122,-962.96,0.00023999,2]
[316993886,1709663439132,-962.96,0.00023999,2]
[316993887,1709663439142,-962.96,0.00023999,2]
[316993888,1709663439151,-962.96,0.00023999,2]
[316993889,1709663439161,-962.96,0.00023999,2]
[316993890,1709663439170,-962.96,0.00023999,2]
[316993891,1709663439179,-962.96,0.00023999,2]
[316993892,1709663439189,-962.96,0.00023999,2]
[316993893,1709663439199,-962.96,0.00023999,2]
[316993894,1709663439209,-500.0,0.00023999,2]
[316993895,1709663439220,-962.96,0.00023999,2]
[316993896,1709663439229,-347.33147373,0.00023999,2]
[316993897,1709663439239,-962.96,0.00023999,2]
[316993898,1709663439249,-962.96,0.00023999,2]
[316993899,1709663439258,-962.96,0.00023999,2]
[316993900,1709663439268,-962.96,0.00023999,2]
[316993901,1709663439277,-962.99162296,0.00023999,2]
[316993902,1709663439287,-500.0,0.00023999,2]
[316993903,1709663439297,-500.0,0.00023999,2]
[316993904,1709663439307,-500.0,0.00023999,2]
[316993905,1709663439317,-606.84,0.00023999,2]
[316993906,1709663439330,-500.0,0.00023999,2]
[316993907,1709663439340,-500.0,0.00023999,2]
[316993908,1709663439349,-500.0,0.00023999,2]
[316993909,1709663439359,-500.0,0.00023999,2]
[316993910,1709663439368,-500.0,0.00023999,2]
[316993911,1709663439378,-500.0,0.00023999,2]
[316993912,1709663439387,-1098.48,0.00023999,2]
[316993913,1709663439396,-500.0,0.00023999,2]
[316993914,1709663439406,-1098.48,0.00023999,2]
[316993915,1709663439416,-254.36999998,0.00023999,2]
[316993916,1709663439425,-1098.48,0.00023999,2]
[316993917,1709663439434,-1098.48,0.00023999,2]
[316993918,1709663439443,-1098.48,0.00023999,2]
[316993919,1709663439452,-1098.48,0.00023999,2]
[316993920,1709663439461,-1098.48,0.00023999,2]
[316993921,1709663439469,-1098.48,0.00023999,2]
[316993922,1709663439478,-1098.48,0.00023999,2]
[316993923,1709663439488,-1098.48,0.00023999,2]
[316993924,1709663439497,-1098.48,0.00023999,2]
[316993925,1709663439509,-1098.48,0.00023999,2]
[316993926,1709663439518,-1098.48,0.00023999,2]
[316993927,1709663439526,-1098.48,0.00023999,2]
[316993928,1709663439535,-1098.48,0.00023999,2]
[316993929,1709663439544,-1098.48,0.00023999,2]
[316993930,1709663439554,-1098.48,0.00023999,2]
[316993931,1709663439563,-1098.48,0.00023999,2]
[316993932,1709663439571,-1098.48,0.00023999,2]
[316993933,1709663439582,-1098.48,0.00023999,2]
[316993935,1709663439591,-1098.48,0.00023999,2]
[316993936,1709663439601,-1098.48,0.00023999,2]
[316993937,1709663439610,-1098.57,0.00023999,2]
[316993938,1709663439618,-500.0,0.00023999,2]
[316993939,1709663439627,-500.0,0.00023999,2]